[Event "*** Titled Tuesday Blitz"]
[Site "Chess.com"]
[Date "2019.12.03"]
[Round "8"]
[White "wnstop"]
[Black "Aleksandr_Kozak"]
[Result "1-0"]
[WhiteElo "2681"]
[BlackElo "2314"]
[TimeControl "180+2"]
[EndTime "14:52:45 PST"]
[Termination "wnstop won on time"]

1. e4 {[%clk 0:03:01.9]} 1... c6 {[%clk 0:03:00.1]} 2. d4 {[%clk 0:03:00.3]}
2... d5 {[%clk 0:03:01.5]} 3. Nc3 {[%clk 0:02:59.8]} 3... g6 {[%clk 0:03:01.7]}
4. Nf3 {[%clk 0:03:01.1]} 4... Bg7 {[%clk 0:03:01.9]} 5. h3 {[%clk 0:03:02]}
5... Nh6 {[%clk 0:03:02.2]} 6. Bd3 {[%clk 0:03:03.4]} 6... O-O {[%clk 0:03:03]}
7. Qe2 {[%clk 0:03:04.8]} 7... b5 {[%clk 0:02:28.4]} 8. a3 {[%clk 0:03:04.1]}
8... a6 {[%clk 0:02:28.6]} 9. O-O {[%clk 0:03:03.5]} 9... f6 {[%clk 0:02:29]}
10. Re1 {[%clk 0:02:32.4]} 10... Ra7 {[%clk 0:02:28.8]} 11. Bf4 {[%clk
0:02:28.3]} 11... Rb7 {[%clk 0:01:49.4]} 12. exd5 {[%clk 0:02:25.8]} 12... cxd5
{[%clk 0:01:48.1]} 13. Bxb8 {[%clk 0:02:26.8]} 13... Rxb8 {[%clk 0:01:48.8]} 14.
Qxe7 {[%clk 0:02:28.3]} 14... Bf5 {[%clk 0:01:36.2]} 15. Bxf5 {[%clk 0:02:24.1]}
15... Nxf5 {[%clk 0:01:30.3]} 16. Qe6+ {[%clk 0:02:24.1]} 16... Kh8 {[%clk
0:01:31.3]} 17. Nxd5 {[%clk 0:02:18.9]} 17... Rb7 {[%clk 0:01:29.9]} 18. c3
{[%clk 0:02:06.5]} 18... Nd6 {[%clk 0:01:15.9]} 19. Ne3 {[%clk 0:01:59.2]} 19...
Qc7 {[%clk 0:00:55]} 20. Qb3 {[%clk 0:01:49]} 20... a5 {[%clk 0:00:39.1]} 21.
Nd5 {[%clk 0:01:40.7]} 21... Qc8 {[%clk 0:00:36.9]} 22. Nf4 {[%clk 0:01:28.8]}
22... Bh6 {[%clk 0:00:33.9]} 23. Ne6 {[%clk 0:01:27.5]} 23... Re8 {[%clk
0:00:30]} 24. Nc5 {[%clk 0:01:28.2]} 24... Rbe7 {[%clk 0:00:29.1]} 25. Qd5
{[%clk 0:01:27.7]} 25... Nc4 {[%clk 0:00:28.4]} 26. Rxe7 {[%clk 0:01:28]} 26...
Rxe7 {[%clk 0:00:28.6]} 27. b3 {[%clk 0:01:26.6]} 27... Nd2 {[%clk 0:00:18.5]}
28. Nxd2 {[%clk 0:01:13.4]} 28... Bxd2 {[%clk 0:00:20.4]} 29. Qd6 {[%clk
0:01:14.2]} 29... Rf7 {[%clk 0:00:17.1]} 30. Qg3 {[%clk 0:01:11.8]} 30... Qf5
{[%clk 0:00:13.4]} 31. Qb8+ {[%clk 0:00:42.7]} 31... Kg7 {[%clk 0:00:13.5]} 32.
Qe8 {[%clk 0:00:43.8]} 1-0

[Event "*** Titled Tuesday Blitz"]
[Site "Chess.com"]
[Date "2019.12.03"]
[Round "8"]
[White "Witik"]
[Black "INLOVEWITHF"]
[Result "0-1"]
[WhiteElo "2575"]
[BlackElo "2457"]
[TimeControl "180+2"]
[EndTime "14:52:45 PST"]
[Termination "INLOVEWITHF won by resignation"]

1. d4 {[%clk 0:03:01.9]} 1... d5 {[%clk 0:02:57.7]} 2. Bf4 {[%clk 0:03:02.3]}
2... c5 {[%clk 0:02:57]} 3. e3 {[%clk 0:03:03.5]} 3... Nf6 {[%clk 0:02:55.7]} 4.
c3 {[%clk 0:03:04.1]} 4... e6 {[%clk 0:02:56.8]} 5. Nd2 {[%clk 0:03:04.7]} 5...
Bd6 {[%clk 0:02:57.8]} 6. Bxd6 {[%clk 0:03:05.4]} 6... Qxd6 {[%clk 0:02:59.1]}
7. Bd3 {[%clk 0:03:07.1]} 7... Nc6 {[%clk 0:02:58.9]} 8. f4 {[%clk 0:03:07.7]}
8... b6 {[%clk 0:02:49.1]} 9. Ngf3 {[%clk 0:03:05.5]} 9... O-O {[%clk
0:02:45.2]} 10. Ne5 {[%clk 0:03:04.6]} 10... cxd4 {[%clk 0:02:44.7]} 11. exd4
{[%clk 0:03:05]} 11... Nb8 {[%clk 0:02:36.5]} 12. Qe2 {[%clk 0:03:02.2]} 12...
a5 {[%clk 0:02:36.9]} 13. O-O {[%clk 0:02:53.7]} 13... Ba6 {[%clk 0:02:38.2]}
14. Rf3 {[%clk 0:02:52.9]} 14... Bxd3 {[%clk 0:02:38.8]} 15. Qxd3 {[%clk
0:02:54.8]} 15... Ne8 {[%clk 0:02:06.1]} 16. f5 {[%clk 0:02:43.5]} 16... f6
{[%clk 0:02:02.7]} 17. Ng4 {[%clk 0:02:37.9]} 17... Nc6 {[%clk 0:01:52.8]} 18.
fxe6 {[%clk 0:02:14.7]} 18... Qxe6 {[%clk 0:01:51.8]} 19. Rg3 {[%clk 0:02:15.7]}
19... f5 {[%clk 0:01:46.7]} 20. Nf2 {[%clk 0:02:10.2]} 20... f4 {[%clk
0:01:45.6]} 21. Rh3 {[%clk 0:02:10.3]} 21... Nf6 {[%clk 0:01:46]} 22. Nf3 {[%clk
0:02:08.2]} 22... Ne4 {[%clk 0:01:38.7]} 23. Re1 {[%clk 0:02:04.9]} 23... Rae8
{[%clk 0:01:39.8]} 24. Ng5 {[%clk 0:01:28.1]} 24... Nxg5 {[%clk 0:01:31.3]} 25.
Rxe6 {[%clk 0:01:27.8]} 25... Rxe6 {[%clk 0:01:31.2]} 26. Qd1 {[%clk 0:00:28.6]}
26... Nxh3+ {[%clk 0:01:23.6]} 27. Nxh3 {[%clk 0:00:27.3]} 27... f3 {[%clk
0:01:15.4]} 28. gxf3 {[%clk 0:00:26.1]} 28... Rg6+ {[%clk 0:01:10.1]} 29. Kf1
{[%clk 0:00:21.6]} 29... Ne7 {[%clk 0:01:07.7]} 30. Ng1 {[%clk 0:00:17.8]} 30...
Nf5 {[%clk 0:01:07.7]} 31. Qb3 {[%clk 0:00:17.9]} 31... Ne3+ {[%clk 0:01:04.2]}
32. Kf2 {[%clk 0:00:18.8]} 32... Re8 {[%clk 0:01:04.9]} 33. Qb5 {[%clk 0:00:15]}
33... Rg2+ {[%clk 0:01:04.5]} 34. Ke1 {[%clk 0:00:16]} 34... Rxg1+ {[%clk
0:01:05.1]} 35. Kd2 {[%clk 0:00:16.9]} 35... Nc4+ {[%clk 0:01:05.3]} 36. Kc2
{[%clk 0:00:13]} 36... Re2+ {[%clk 0:01:05.9]} 0-1

[Event "*** Titled Tuesday Blitz"]
[Site "Chess.com"]
[Date "2019.12.03"]
[Round "8"]
[White "Ambitiousresolutions"]
[Black "HarutyunianTigranK"]
[Result "0-1"]
[WhiteElo "2630"]
[BlackElo "2769"]
[TimeControl "180+2"]
[EndTime "14:52:52 PST"]
[Termination "HarutyunianTigranK won by checkmate"]

1. e4 {[%clk 0:03:01.9]} 1... e5 {[%clk 0:03:00.7]} 2. Nf3 {[%clk 0:03:02.4]}
2... Nc6 {[%clk 0:03:02.3]} 3. Bc4 {[%clk 0:03:03.2]} 3... Bc5 {[%clk
0:03:02.6]} 4. O-O {[%clk 0:03:03.3]} 4... Nf6 {[%clk 0:03:04.1]} 5. d3 {[%clk
0:03:04.4]} 5... O-O {[%clk 0:03:05]} 6. a4 {[%clk 0:03:04]} 6... h6 {[%clk
0:03:01.8]} 7. c3 {[%clk 0:03:03.5]} 7... a5 {[%clk 0:03:00.7]} 8. Re1 {[%clk
0:03:02.7]} 8... d6 {[%clk 0:03:01.4]} 9. h3 {[%clk 0:03:00.5]} 9... Be6 {[%clk
0:03:00.8]} 10. Na3 {[%clk 0:02:49.4]} 10... Bxa3 {[%clk 0:02:51.6]} 11. Rxa3
{[%clk 0:02:51.3]} 11... Bxc4 {[%clk 0:02:51.6]} 12. dxc4 {[%clk 0:02:51.7]}
12... Nd7 {[%clk 0:02:51.6]} 13. Be3 {[%clk 0:02:48.8]} 13... b6 {[%clk
0:02:51.1]} 14. Ra1 {[%clk 0:02:46.3]} 14... Ne7 {[%clk 0:02:51.8]} 15. Nh4
{[%clk 0:02:38.8]} 15... f5 {[%clk 0:02:30]} 16. exf5 {[%clk 0:02:32.4]} 16...
Nxf5 {[%clk 0:02:29.9]} 17. Nxf5 {[%clk 0:02:31]} 17... Rxf5 {[%clk 0:02:29.6]}
18. Qd3 {[%clk 0:02:18.1]} 18... Qf8 {[%clk 0:02:25.9]} 19. Rf1 {[%clk 0:02:09]}
19... Re8 {[%clk 0:02:23.4]} 20. b4 {[%clk 0:02:07.6]} 20... Kh8 {[%clk
0:02:19.5]} 21. Qd5 {[%clk 0:02:04.1]} 21... Qf7 {[%clk 0:01:24.2]} 22. Qc6
{[%clk 0:01:44.7]} 22... Re6 {[%clk 0:01:14.6]} 23. Qxc7 {[%clk 0:01:39.1]}
23... Rg6 {[%clk 0:01:15]} 24. Qc6 {[%clk 0:01:34.3]} 24... Qe6 {[%clk
0:00:47.8]} 25. Qd5 {[%clk 0:01:25.9]} 25... Qe8 {[%clk 0:00:39.6]} 26. Rad1
{[%clk 0:01:21.7]} 26... Rh5 {[%clk 0:00:39.3]} 27. c5 {[%clk 0:01:14.4]} 27...
bxc5 {[%clk 0:00:33.9]} 28. bxc5 {[%clk 0:01:08.4]} 28... e4 {[%clk 0:00:33.5]}
29. Qc6 {[%clk 0:00:39.6]} 29... d5 {[%clk 0:00:32.1]} 30. Qb7 {[%clk
0:00:33.7]} 30... Ne5 {[%clk 0:00:31.4]} 31. Kh1 {[%clk 0:00:24.3]} 31... Rxg2
{[%clk 0:00:30.7]} 32. Qxd5 {[%clk 0:00:22.8]} 32... Rxh3+ {[%clk 0:00:27.6]}
33. Kxg2 {[%clk 0:00:22.7]} 33... Qg6+ {[%clk 0:00:28.6]} 34. Kxh3 {[%clk
0:00:18.6]} 34... Qg4+ {[%clk 0:00:29.4]} 35. Kh2 {[%clk 0:00:20.1]} 35... Nf3+
{[%clk 0:00:30.2]} 36. Kh1 {[%clk 0:00:21.7]} 36... Qh3# {[%clk 0:00:31.9]} 0-1

[Event "*** Titled Tuesday Blitz"]
[Site "Chess.com"]
[Date "2019.12.03"]
[Round "8"]
[White "resha1988"]
[Black "arminmusovic"]
[Result "1-0"]
[WhiteElo "2744"]
[BlackElo "2545"]
[TimeControl "180+2"]
[EndTime "14:52:59 PST"]
[Termination "resha1988 won by resignation"]

1. d4 {[%clk 0:03:01.9]} 1... d5 {[%clk 0:03:00.6]} 2. Nf3 {[%clk 0:03:02.4]}
2... Nf6 {[%clk 0:03:01.2]} 3. c4 {[%clk 0:03:03.5]} 3... c5 {[%clk 0:03:02]} 4.
e3 {[%clk 0:02:59]} 4... e6 {[%clk 0:03:02.7]} 5. Nc3 {[%clk 0:02:59]} 5... Nc6
{[%clk 0:03:03.8]} 6. a3 {[%clk 0:02:57.4]} 6... a5 {[%clk 0:03:04.9]} 7. Bd3
{[%clk 0:02:50.3]} 7... Be7 {[%clk 0:02:59.2]} 8. O-O {[%clk 0:02:50.9]} 8...
O-O {[%clk 0:03:00.2]} 9. dxc5 {[%clk 0:02:24.5]} 9... Bxc5 {[%clk 0:02:51.3]}
10. Qe2 {[%clk 0:02:22.9]} 10... Re8 {[%clk 0:02:48.1]} 11. Rd1 {[%clk
0:02:23.7]} 11... d4 {[%clk 0:02:18.3]} 12. exd4 {[%clk 0:02:21]} 12... Nxd4
{[%clk 0:02:20.2]} 13. Nxd4 {[%clk 0:02:18.3]} 13... Bxd4 {[%clk 0:02:22.1]} 14.
Nb5 {[%clk 0:02:14.2]} 14... e5 {[%clk 0:02:19.8]} 15. h3 {[%clk 0:01:26.8]}
15... h6 {[%clk 0:02:10.9]} 16. Nxd4 {[%clk 0:01:25.3]} 16... exd4 {[%clk
0:02:12.3]} 17. Qf3 {[%clk 0:01:26.5]} 17... Qb6 {[%clk 0:02:09.4]} 18. Rb1
{[%clk 0:01:25.9]} 18... Bd7 {[%clk 0:02:07.5]} 19. b4 {[%clk 0:01:17.8]} 19...
Ba4 {[%clk 0:01:58.9]} 20. Rf1 {[%clk 0:01:08]} 20... Bc6 {[%clk 0:01:45.9]} 21.
Qd1 {[%clk 0:01:01.7]} 21... Ne4 {[%clk 0:01:39.9]} 22. Bb2 {[%clk 0:00:40]}
22... axb4 {[%clk 0:01:14.3]} 23. axb4 {[%clk 0:00:36.7]} 23... Qxb4 {[%clk
0:01:08.3]} 24. Bxd4 {[%clk 0:00:32]} 24... Qd6 {[%clk 0:01:08]} 25. Ba1 {[%clk
0:00:30]} 25... Qg6 {[%clk 0:01:03.1]} 26. f3 {[%clk 0:00:19.9]} 26... Rad8
{[%clk 0:00:40.5]} 27. fxe4 {[%clk 0:00:20]} 27... Rxd3 {[%clk 0:00:37.3]} 28.
Qxd3 {[%clk 0:00:19.8]} 28... Bxe4 {[%clk 0:00:38.7]} 29. Qe2 {[%clk 0:00:20.8]}
29... f5 {[%clk 0:00:26.2]} 30. Rbe1 {[%clk 0:00:20.1]} 30... Rd8 {[%clk
0:00:23]} 31. Qf2 {[%clk 0:00:18.9]} 31... Kh7 {[%clk 0:00:20.9]} 32. Re3 {[%clk
0:00:19.2]} 32... Ra8 {[%clk 0:00:16.7]} 33. Rg3 {[%clk 0:00:19.2]} 1-0

[Event "*** Titled Tuesday Blitz"]
[Site "Chess.com"]
[Date "2019.12.03"]
[Round "8"]
[White "FrogMist"]
[Black "Sneakiest_Of_Snakes"]
[Result "1-0"]
[WhiteElo "2292"]
[BlackElo "1827"]
[TimeControl "180+2"]
[EndTime "14:52:59 PST"]
[Termination "FrogMist won by checkmate"]

1. e4 {[%clk 0:02:45.1]} 1... c6 {[%clk 0:02:49.3]} 2. d4 {[%clk 0:02:41]} 2...
d5 {[%clk 0:02:50]} 3. f3 {[%clk 0:02:39.9]} 3... dxe4 {[%clk 0:02:49.4]} 4.
fxe4 {[%clk 0:02:41.8]} 4... e5 {[%clk 0:02:51]} 5. Nf3 {[%clk 0:02:41.9]} 5...
exd4 {[%clk 0:02:51.2]} 6. Bc4 {[%clk 0:02:39.8]} 6... b5 {[%clk 0:02:29.3]} 7.
Bb3 {[%clk 0:02:10.7]} 7... c5 {[%clk 0:02:09.2]} 8. Bd5 {[%clk 0:02:07.4]} 8...
Nd7 {[%clk 0:00:54.4]} 9. Ng5 {[%clk 0:01:50.7]} 9... Rb8 {[%clk 0:00:46.6]} 10.
Bxf7+ {[%clk 0:01:49.6]} 10... Ke7 {[%clk 0:00:47.7]} 11. O-O {[%clk 0:01:30.5]}
11... Ngf6 {[%clk 0:00:36.9]} 12. Bf4 {[%clk 0:01:20.9]} 12... Rb6 {[%clk
0:00:33.8]} 13. e5 {[%clk 0:01:18.1]} 13... h6 {[%clk 0:00:18.2]} 14. exf6+
{[%clk 0:01:13.7]} 14... gxf6 {[%clk 0:00:19]} 15. Re1+ {[%clk 0:01:11.6]} 15...
Ne5 {[%clk 0:00:18.3]} 16. Bxe5 {[%clk 0:01:07.5]} 16... fxe5 {[%clk 0:00:19.6]}
17. Rxe5+ {[%clk 0:01:08.2]} 17... Kd6 {[%clk 0:00:18.8]} 18. Rd5+ {[%clk
0:01:06.6]} 18... Kc7 {[%clk 0:00:15.3]} 19. Rxd8 {[%clk 0:01:05.8]} 19... Kxd8
{[%clk 0:00:17.2]} 20. Ne6+ {[%clk 0:00:56.4]} 20... Ke7 {[%clk 0:00:17]} 21.
Nxf8 {[%clk 0:00:53.6]} 21... Kxf7 {[%clk 0:00:18.5]} 22. Qf3+ {[%clk
0:00:52.6]} 22... Rf6 {[%clk 0:00:19.2]} 23. Qd5+ {[%clk 0:00:47.2]} 23... Kxf8
{[%clk 0:00:17.9]} 24. Nd2 {[%clk 0:00:48.7]} 24... Kg7 {[%clk 0:00:17.1]} 25.
Nf3 {[%clk 0:00:47.5]} 25... Rhf8 {[%clk 0:00:17.7]} 26. Re1 {[%clk 0:00:47.5]}
26... R8f7 {[%clk 0:00:16.4]} 27. Re8 {[%clk 0:00:47.2]} 27... Bb7 {[%clk
0:00:17.1]} 28. Qd8 {[%clk 0:00:42.8]} 28... Rf8 {[%clk 0:00:02.9]} 29. Qc7+
{[%clk 0:00:19.5]} 29... R8f7 {[%clk 0:00:03.4]} 30. Qb8 {[%clk 0:00:20.4]}
30... Be4 {[%clk 0:00:03.6]} 31. Rg8+ {[%clk 0:00:20.9]} 31... Kh7 {[%clk
0:00:05]} 32. Rh8+ {[%clk 0:00:21.9]} 32... Kg6 {[%clk 0:00:06.5]} 33. Qg8+
{[%clk 0:00:21]} 33... Kh5 {[%clk 0:00:07.8]} 34. g4# {[%clk 0:00:21.2]} 1-0

[Event "*** Titled Tuesday Blitz"]
[Site "Chess.com"]
[Date "2019.12.03"]
[Round "8"]
[White "Kimster98"]
[Black "ChessWarrior7197"]
[Result "1/2-1/2"]
[WhiteElo "2571"]
[BlackElo "2898"]
[TimeControl "180+2"]
[EndTime "14:53:21 PST"]
[Termination "Game drawn - insufficient material"]

1. Nf3 {[%clk 0:02:09.6]} 1... Nf6 {[%clk 0:02:59.4]} 2. c4 {[%clk 0:02:10.6]}
2... b6 {[%clk 0:03:00.1]} 3. g3 {[%clk 0:02:11.6]} 3... Bb7 {[%clk 0:03:00.8]}
4. Bg2 {[%clk 0:02:13.1]} 4... g6 {[%clk 0:03:02.2]} 5. b3 {[%clk 0:02:14.3]}
5... Bg7 {[%clk 0:03:03.4]} 6. Bb2 {[%clk 0:02:15.9]} 6... Nh5 {[%clk
0:03:03.7]} 7. Bxg7 {[%clk 0:02:16.2]} 7... Nxg7 {[%clk 0:03:03.6]} 8. O-O
{[%clk 0:02:18.1]} 8... O-O {[%clk 0:03:05.1]} 9. Nc3 {[%clk 0:02:17.7]} 9... c5
{[%clk 0:03:04.6]} 10. d4 {[%clk 0:02:19]} 10... cxd4 {[%clk 0:03:06]} 11. Nxd4
{[%clk 0:02:20.4]} 11... Bxg2 {[%clk 0:03:06.7]} 12. Kxg2 {[%clk 0:02:22.3]}
12... Nc6 {[%clk 0:03:04.7]} 13. Nxc6 {[%clk 0:02:23.1]} 13... dxc6 {[%clk
0:03:06.6]} 14. Qxd8 {[%clk 0:02:25]} 14... Rfxd8 {[%clk 0:03:08.4]} 15. Rfd1
{[%clk 0:02:26.9]} 15... Nf5 {[%clk 0:03:07.1]} 16. e3 {[%clk 0:02:25.5]} 16...
f6 {[%clk 0:03:07.5]} 17. Rxd8+ {[%clk 0:02:25.4]} 17... Rxd8 {[%clk 0:03:08.1]}
18. Rd1 {[%clk 0:02:27.3]} 18... Rxd1 {[%clk 0:03:09.7]} 19. Nxd1 {[%clk
0:02:29.2]} 19... Kf7 {[%clk 0:03:11.6]} 20. Nc3 {[%clk 0:02:24.8]} 20... h5
{[%clk 0:03:12]} 21. h3 {[%clk 0:02:22.1]} 21... g5 {[%clk 0:03:11.7]} 22. g4
{[%clk 0:02:19.9]} 22... Ng7 {[%clk 0:03:09.6]} 23. f4 {[%clk 0:02:15.4]} 23...
Kg6 {[%clk 0:02:55.2]} 24. Kf3 {[%clk 0:02:12.5]} 24... f5 {[%clk 0:02:55.2]}
25. gxf5+ {[%clk 0:01:50.2]} 25... Kxf5 {[%clk 0:02:52.3]} 26. e4+ {[%clk
0:01:42.8]} 26... Kg6 {[%clk 0:02:48.8]} 27. Ne2 {[%clk 0:01:41.9]} 27... Kf6
{[%clk 0:02:45.9]} 28. e5+ {[%clk 0:01:24.9]} 28... Kg6 {[%clk 0:02:44.8]} 29.
Nd4 {[%clk 0:01:24.5]} 29... gxf4 {[%clk 0:02:36.9]} 30. Kxf4 {[%clk 0:01:17]}
30... c5 {[%clk 0:02:35.3]} 31. Nc6 {[%clk 0:01:17]} 31... Ne6+ {[%clk
0:02:37.2]} 32. Kg3 {[%clk 0:01:14.8]} 32... Kf5 {[%clk 0:02:28.8]} 33. Nxe7+
{[%clk 0:01:15]} 33... Kxe5 {[%clk 0:02:28.8]} 34. Nc6+ {[%clk 0:01:16.3]} 34...
Kf5 {[%clk 0:02:27.4]} 35. Nxa7 {[%clk 0:01:16.6]} 35... Nf8 {[%clk 0:02:19.2]}
36. Nc8 {[%clk 0:01:13.6]} 36... Nd7 {[%clk 0:02:19.9]} 37. Kh4 {[%clk
0:01:11.9]} 37... Kg6 {[%clk 0:02:20.8]} 38. a3 {[%clk 0:01:11.6]} 38... Kh6
{[%clk 0:02:21.2]} 39. b4 {[%clk 0:01:10.9]} 39... cxb4 {[%clk 0:02:21.8]} 40.
axb4 {[%clk 0:01:12.8]} 40... Kg6 {[%clk 0:02:18.8]} 41. Ne7+ {[%clk 0:01:10.6]}
41... Kh6 {[%clk 0:02:19.3]} 42. Nc8 {[%clk 0:01:12]} 42... Kg6 {[%clk
0:02:20.2]} 43. Ne7+ {[%clk 0:01:13.3]} 43... Kh6 {[%clk 0:02:21.3]} 44. Nd5
{[%clk 0:01:14.8]} 44... Kg6 {[%clk 0:02:13.3]} 45. Nf4+ {[%clk 0:01:12.9]}
45... Kf5 {[%clk 0:02:14.8]} 46. Nxh5 {[%clk 0:01:11.6]} 46... Ne5 {[%clk
0:02:16.7]} 47. c5 {[%clk 0:01:09.2]} 47... b5 {[%clk 0:02:18.1]} 48. Ng7+
{[%clk 0:00:51.8]} 48... Ke4 {[%clk 0:02:15.7]} 49. Ne8 {[%clk 0:00:47.1]} 49...
Nc6 {[%clk 0:02:15]} 50. Nd6+ {[%clk 0:00:42]} 50... Kd5 {[%clk 0:02:16.5]} 51.
Nxb5 {[%clk 0:00:43]} 51... Nxb4 {[%clk 0:02:18.4]} 52. Kg5 {[%clk 0:00:40.6]}
52... Kxc5 {[%clk 0:02:19.7]} 53. Nc3 {[%clk 0:00:21.9]} 53... Kd6 {[%clk
0:02:19.4]} 54. Kf6 {[%clk 0:00:21.4]} 54... Nd3 {[%clk 0:02:18.8]} 55. h4
{[%clk 0:00:22.3]} 55... Nf4 {[%clk 0:02:20.1]} 56. Kf5 {[%clk 0:00:23.7]} 56...
Nh5 {[%clk 0:02:21.1]} 57. Kg5 {[%clk 0:00:25.1]} 57... Ng3 {[%clk 0:02:22]} 58.
Kg4 {[%clk 0:00:25.1]} 58... Nf1 {[%clk 0:02:22.4]} 59. h5 {[%clk 0:00:24.9]}
59... Ke6 {[%clk 0:02:23.4]} 60. Kg5 {[%clk 0:00:24.1]} 60... Kf7 {[%clk
0:02:23.4]} 61. h6 {[%clk 0:00:25.2]} 61... Nd2 {[%clk 0:02:23.5]} 62. Kf5
{[%clk 0:00:23]} 62... Nc4 {[%clk 0:02:23.4]} 63. Ne4 {[%clk 0:00:21.9]} 63...
Ne3+ {[%clk 0:02:24.6]} 64. Kg5 {[%clk 0:00:23.3]} 64... Nd5 {[%clk 0:02:25.6]}
65. Nd6+ {[%clk 0:00:21.4]} 65... Kg8 {[%clk 0:02:26.8]} 66. Kg6 {[%clk
0:00:20.8]} 66... Ne7+ {[%clk 0:02:27.9]} 67. Kf6 {[%clk 0:00:21.7]} 67... Kh7
{[%clk 0:02:29.2]} 68. Nf7 {[%clk 0:00:23]} 68... Ng8+ {[%clk 0:02:30.7]} 69.
Kg5 {[%clk 0:00:24]} 69... Nxh6 {[%clk 0:02:32.6]} 1/2-1/2

[Event "*** Titled Tuesday Blitz"]
[Site "Chess.com"]
[Date "2019.12.03"]
[Round "8"]
[White "gmcorrales"]
[Black "GCamachoMartinez"]
[Result "1/2-1/2"]
[WhiteElo "2727"]
[BlackElo "2464"]
[TimeControl "180+2"]
[EndTime "14:53:31 PST"]
[Termination "Game drawn - insufficient material"]

1. e4 {[%clk 0:03:01.9]} 1... e5 {[%clk 0:03:00.4]} 2. Nf3 {[%clk 0:03:02.4]}
2... Nf6 {[%clk 0:03:00.9]} 3. Nxe5 {[%clk 0:02:59.6]} 3... d6 {[%clk
0:03:01.9]} 4. Nf3 {[%clk 0:03:01.1]} 4... Nxe4 {[%clk 0:03:03]} 5. Nc3 {[%clk
0:03:02.6]} 5... Nxc3 {[%clk 0:03:04]} 6. dxc3 {[%clk 0:03:04.5]} 6... Be7
{[%clk 0:03:05.2]} 7. Be3 {[%clk 0:03:06.1]} 7... Nc6 {[%clk 0:03:06.4]} 8. Qd2
{[%clk 0:03:07.6]} 8... Ne5 {[%clk 0:02:59]} 9. O-O-O {[%clk 0:03:07]} 9... Nxf3
{[%clk 0:02:59.1]} 10. gxf3 {[%clk 0:03:08.9]} 10... Be6 {[%clk 0:03:00.3]} 11.
Kb1 {[%clk 0:03:03.4]} 11... c6 {[%clk 0:02:55.2]} 12. h4 {[%clk 0:03:03.6]}
12... Qa5 {[%clk 0:02:53.9]} 13. b3 {[%clk 0:03:03.3]} 13... O-O-O {[%clk
0:02:51.7]} 14. Bd4 {[%clk 0:02:59.6]} 14... c5 {[%clk 0:02:45.8]} 15. Bxg7
{[%clk 0:02:50.8]} 15... Rhg8 {[%clk 0:02:46.6]} 16. Qh6 {[%clk 0:02:51.8]}
16... Bf8 {[%clk 0:02:10.6]} 17. Bxf8 {[%clk 0:02:41.6]} 17... Rgxf8 {[%clk
0:02:12.5]} 18. Rxd6 {[%clk 0:02:30.8]} 18... Rxd6 {[%clk 0:02:10]} 19. Qxf8+
{[%clk 0:02:25]} 19... Rd8 {[%clk 0:02:11.9]} 20. Qg7 {[%clk 0:02:15.6]} 20...
c4 {[%clk 0:02:00.5]} 21. Be2 {[%clk 0:01:59]} 21... Qf5 {[%clk 0:01:52.3]} 22.
Qg5 {[%clk 0:01:30.1]} 22... Qxg5 {[%clk 0:01:11.5]} 23. hxg5 {[%clk 0:01:32]}
23... cxb3 {[%clk 0:01:13.4]} 24. axb3 {[%clk 0:01:31.6]} 24... Rd2 {[%clk
0:01:15.3]} 25. Re1 {[%clk 0:00:40.9]} 25... Bf5 {[%clk 0:01:15.4]} 26. Bd1
{[%clk 0:00:26.1]} 26... Rxf2 {[%clk 0:01:16.2]} 27. Re3 {[%clk 0:00:15.5]}
27... Rg2 {[%clk 0:01:16.2]} 28. f4 {[%clk 0:00:15.4]} 28... Rf2 {[%clk
0:01:17]} 29. Rf3 {[%clk 0:00:16.6]} 29... Bxc2+ {[%clk 0:01:12.6]} 30. Kc1
{[%clk 0:00:17.5]} 30... Rxf3 {[%clk 0:01:12.2]} 31. Bxf3 {[%clk 0:00:19.4]}
31... Bxb3 {[%clk 0:01:13.3]} 32. Be4 {[%clk 0:00:20.8]} 32... a5 {[%clk
0:01:04.1]} 33. Bxh7 {[%clk 0:00:21.7]} 33... b5 {[%clk 0:01:05.4]} 34. Bd3
{[%clk 0:00:21.4]} 34... b4 {[%clk 0:00:59.4]} 35. cxb4 {[%clk 0:00:21.4]} 35...
axb4 {[%clk 0:01:01.3]} 36. Kd2 {[%clk 0:00:23]} 36... Bd5 {[%clk 0:01:00.4]}
37. Ke3 {[%clk 0:00:23.8]} 37... Kd7 {[%clk 0:01:00.7]} 38. Kd4 {[%clk
0:00:24.4]} 38... Kd6 {[%clk 0:01:02.2]} 39. f5 {[%clk 0:00:25.6]} 39... b3
{[%clk 0:00:59.5]} 40. f6 {[%clk 0:00:26.7]} 40... Be6 {[%clk 0:00:58.5]} 41.
Be4 {[%clk 0:00:19.5]} 41... b2 {[%clk 0:00:52.5]} 42. Bb1 {[%clk 0:00:15.2]}
42... Bd5 {[%clk 0:00:49.5]} 43. Kc3 {[%clk 0:00:11.6]} 43... Ke5 {[%clk
0:00:50.4]} 44. Kxb2 {[%clk 0:00:12.3]} 44... Kf4 {[%clk 0:00:51.5]} 45. Ba2
{[%clk 0:00:10.4]} 45... Kxg5 {[%clk 0:00:38.9]} 46. Bxd5 {[%clk 0:00:10.8]}
46... Kxf6 {[%clk 0:00:39.7]} 47. Bxf7 {[%clk 0:00:12.3]} 1/2-1/2